bitfinex-derivatives/quotes_ETHF0:USTF0_20240830
["timestamp","ask_amount","ask_price","bid_price","bid_amount"]
[1725026269708,0.00595853,2518.6,2518.5,4.58]
[1725026269902,0.00595853,2518.6,2518.5,4.977]
[1725026270105,0.00595853,2518.6,2518.5,4.58]
[1725026271009,0.00595853,2518.6,2518.2,4.97704]
[1725026271214,0.00595853,2518.6,2518.2,4.58]
[1725026271408,0.00595853,2518.6,2518.5,0.397]
[1725026271804,0.00595853,2518.6,2518.5,7.5752]
[1725026272010,0.00595853,2518.6,2518.5,1.0088]
[1725026272211,0.00595853,2518.6,2518.4,4.58]
[1725026272412,0.40293853,2518.6,2518.2,3.60483]
[1725026272606,0.00595853,2518.6,2518.2,3.2078]
[1725026272807,0.00595853,2518.6,2518.4,0.397]
[1725026273115,0.00595853,2518.6,2518.3,0.39702]
[1725026273318,0.00595853,2518.6,2518.2,3.60484]
[1725026273624,0.00595853,2518.6,2518.3,0.39702]
[1725026273918,0.00595853,2518.6,2518.2,3.2078]
[1725026274111,0.00595853,2518.6,2518.5,0.397]
[1725026274511,0.00595853,2518.6,2518.4,0.397]
[1725026274711,0.00595853,2518.6,2518.5,0.397]
[1725026275317,3.97635853,2518.6,2518.4,4.97701]
[1725026275514,0.00595853,2518.6,2518.4,4.97701]
[1725026275821,0.00595853,2518.6,2518.4,4.58]
[1725026276008,0.00595853,2518.6,2518.5,0.397]
[1725026276209,3.97635853,2518.6,2518.5,0.397]
[1725026276417,0.00595853,2518.6,2518.5,0.397]
[1725026278116,0.00595853,2518.6,2518.5,4.3674]
[1725026279118,0.00595853,2518.6,2518.5,0.397]
[1725026279628,0.00595853,2518.6,2518.5,5.3599]
[1725026280418,3.2078,2519.3,2518.6,0.99244]
[1725026280618,3.2078,2519.3,2518.7,0.99241]
[1725026280828,3.2078,2519.3,2519.1,0.3969]
[1725026281010,3.2078,2519.3,2518.8,1.19554632]
[1725026281211,4.2373499,2519.7,2519.1,0.99226]
[1725026281417,1.0295499,2519.8,2519.3,5.57215]
[1725026281619,4.95288105,2520.0,2519.3,4.58595853]
[1725026281620,3.2078,2519.7,2519.3,4.58595853]
[1725026281822,3.2078,2519.7,2519.3,0.00595853]
[1725026281823,3.60466,2519.4,2519.3,0.00595853]
[1725026282022,3.2078,2519.4,2519.3,0.00595853]
[1725026282316,3.2078,2519.5,2519.3,0.00595853]
[1725026282910,3.2078,2519.5,2519.4,0.39686]
[1725026283113,3.2078,2519.8,2519.4,4.58]
[1725026283314,1.74508105,2520.0,2519.9,0.39678]
[1725026283315,0.2,2520.0,2519.9,0.39678]
[1725026283514,1.54508105,2520.7,2520.3,0.3967]
[1725026283722,46.06196705,2521.0,2519.9,6.59485244]
[1725026283723,4.75288105,2521.0,2520.1,5.57186]
[1725026283914,3.2078,2521.0,2520.2,0.6111]
[1725026284109,3.2078,2521.0,2520.2,3.8189]
[1725026284316,3.2078,2521.0,2520.6,4.58]
[1725026284620,3.2078,2521.0,2520.6,4.97666]
[1725026285120,4.75288105,2521.3,2520.6,4.58]
[1725026285319,1.54508105,2521.4,2520.8,4.58]
[1725026285513,4.75288105,2521.6,2521.1,4.97658]
[1725026285718,3.2078,2521.6,2521.4,4.58]
[1725026285917,3.2078,2522.1,2521.5,3.9656]
[1725026286119,3.2078,2522.1,2521.8,4.58]
[1725026286311,3.2078,2522.5,2521.7,3.2078]
[1725026286520,3.2078,2521.9,2521.2,4.58]
[1725026286927,3.2078,2521.9,2521.0,3.2078]
[1725026286928,0.39653,2521.5,2521.0,3.2078]
[1725026287218,3.60432,2521.6,2521.0,3.2078]
[1725026287609,3.2078,2521.6,2521.0,3.2078]
[1725026288222,0.39653,2521.5,2521.0,3.2078]
[1725026288417,3.60432,2521.6,2521.0,3.2078]
[1725026288721,3.2078,2521.6,2521.0,3.6044]
[1725026288922,3.2078,2521.6,2521.2,4.58]
[1725026290026,3.2078,2522.0,2521.5,4.97652]
[1725026290226,3.2078,2522.3,2521.5,4.58]
[1725026290422,3.6042,2522.3,2521.6,3.79815657]
[1725026290619,3.2078,2522.3,2521.8,4.58]
[1725026290823,3.2078,2522.3,2521.9,0.39645]
[1725026291027,3.2078,2522.3,2521.8,4.58]
[1725026291028,3.2078,2522.3,2522.0,0.39644]
[1725026291225,3.2078,2522.3,2521.9,0.39646]
[1725026291420,3.2078,2522.3,2522.1,4.58]
[1725026291725,3.2078,2522.3,2522.2,0.39641]
[1725026292021,3.2078,2522.3,2522.2,4.36121]
[1725026292218,46.31408105,2523.1,2522.4,0.39638]
[1725026292219,5.14916105,2523.1,2522.4,0.39638]
[1725026292417,5.14916105,2523.1,2522.2,3.9648]
[1725026292418,3.2078,2523.1,2522.6,4.58]
[1725026292822,3.2078,2523.1,2522.7,0.39633]
[1725026293022,3.2078,2522.8,2522.0,3.21375853]
[1725026293328,0.39638,2522.4,2522.3,4.58]
[1725026293526,0.39642,2522.2,2522.0,8.40125853]
[1725026293715,3.2078,2522.8,2522.0,8.40125853]
[1725026293921,0.99089,2522.6,2522.0,8.40125853]
[1725026294226,3.2078,2522.8,2522.0,8.40125853]
[1725026294417,0.39634,2522.7,2522.0,7.79375853]
[1725026294618,0.97524,2522.7,2522.0,7.79375853]
[1725026294822,0.3964,2522.3,2522.0,7.79375853]
[1725026295025,0.5789,2522.7,2522.0,7.79375853]
[1725026295326,3.7867,2522.7,2522.0,4.58595853]
[1725026295524,3.7741,2523.4,2522.4,4.58]
[1725026295726,3.6041,2523.0,2522.7,4.58]
[1725026295916,3.2078,2523.0,2522.7,4.97633]
[1725026296116,3.2078,2522.8,2522.1,5.57052]
[1725026296323,3.2078,2522.5,2522.2,0.39641]
[1725026296532,3.2078,2522.5,2522.1,5.1741]
[1725026296918,0.99077,2523.0,2522.1,5.1741]
[1725026296919,3.2078,2523.0,2522.4,4.58]
[1725026297225,3.2078,2523.3,2522.8,4.58]
[1725026297424,0.39628,2523.1,2522.8,4.58]
[1725026297627,0.39633,2522.8,2522.6,4.58]
[1725026298019,3.2078,2523.0,2522.6,4.58]
[1725026298214,3.2078,2522.8,2522.6,4.58]
[1725026298620,3.2078,2523.4,2522.8,0.39631]
[1725026298820,3.2078,2523.4,2522.9,4.58]
[1725026299014,3.2078,2523.0,2522.6,4.97634]
[1725026299216,3.2078,2523.0,2522.7,0.39633]
[1725026300222,3.2078,2523.0,2522.8,0.39632]
[1725026300427,8.08424605,2522.9,2522.5,4.58]
[1725026300620,3.2078,2522.6,2522.5,4.58]
[1725026300819,3.2078,2522.6,2522.2,4.58]
[1725026301016,3.2078,2522.3,2522.2,4.58]
[1725026301221,3.2078,2522.8,2522.2,4.97641]
[1725026301421,3.2078,2522.8,2522.2,4.58]
[1725026301633,3.2078,2522.5,2522.2,4.58]
[1725026302023,7.1726,2522.5,2522.2,4.58]
[1725026302422,0.39632,2522.8,2522.2,4.58]
[1725026302722,3.2078,2522.6,2522.2,4.58]
[1725026302927,3.2078,2522.6,2522.2,4.97641]
[1725026303120,3.2078,2522.6,2522.3,0.3964]
[1725026303319,3.2078,2522.6,2522.2,4.58]
[1725026303320,3.60416,2522.6,2522.2,4.58]
[1725026303720,3.2078,2522.6,2522.3,0.3964]
[1725026304027,3.2078,2522.6,2522.2,4.58]
[1725026304231,3.2078,2522.6,2522.5,4.97637]
[1725026304833,4.3656,2523.2,2522.5,4.58]
[1725026305028,4.3656,2523.2,2522.8,4.58]
[1725026305230,3.2078,2522.9,2522.8,4.58]
[1725026305739,7.1718,2522.9,2522.8,4.97632]
[1725026305921,4.3656,2523.2,2522.8,4.58]
[1725026306234,3.2078,2523.2,2522.8,4.97631]
[1725026306431,3.2078,2522.9,2522.8,4.58]
[1725026306623,3.2078,2522.9,2522.8,4.97632]
[1725026306931,1.56424,2523.5,2523.0,0.39629]
[1725026306932,0.39623,2523.4,2523.0,0.39629]
[1725026307136,3.7815,2523.5,2522.8,4.58]
[1725026307331,7.56895,2523.9,2523.5,0.3962]
[1725026307630,0.00315692,2524.1,2523.9,0.39614]
[1725026307834,0.00315692,2524.1,2523.9,4.97614]
[1725026308132,7.17255692,2524.1,2523.6,4.58]
[1725026308320,0.39615,2523.9,2523.6,4.58]
[1725026308524,3.21095692,2524.1,2524.0,0.39613]
[1725026308734,7.17255692,2524.1,2524.0,0.39613]
[1725026309330,0.00315692,2524.1,2524.0,0.39613]
[1725026309530,3.21095692,2524.1,2524.0,0.39613]
[1725026309731,3.2078,2525.0,2524.0,4.3584]
[1725026309925,3.2078,2525.0,2524.4,4.58]
[1725026310128,0.39604,2524.6,2524.4,4.58]
[1725026310328,3.2078,2524.7,2524.2,4.58]
[1725026310632,3.2078,2524.7,2523.9,0.39614]
[1725026310633,0.39611,2524.2,2523.9,4.58]
[1725026310829,0.39612,2524.1,2523.9,4.58]
[1725026311029,3.2078,2524.8,2523.9,4.58]
[1725026311234,3.2078,2525.4,2524.7,7.7878]
[1725026311433,3.2078,2525.4,2525.1,4.58]
[1725026311729,3.2078,2525.3,2525.1,4.58]
[1725026311924,3.2078,2525.8,2525.1,4.58]
[1725026312128,3.2078,2525.8,2524.9,0.5612]
[1725026312129,3.2078,2525.5,2524.9,0.5612]
[1725026312329,0.39599,2524.9,2524.8,0.00594636]
[1725026312530,7.56459,2524.9,2524.8,0.00594636]
[1725026312732,3.2078,2524.9,2524.8,0.00594636]
[1725026313637,3.2078,2525.2,2524.8,4.58594636]
[1725026313825,3.2078,2525.2,2525.1,4.58]
[1725026314025,3.2078,2525.2,2524.9,1.1775]
[1725026314331,3.2078,2525.2,2524.9,1.57349]
[1725026314534,3.2078,2525.2,2525.0,0.39597]
[1725026314729,3.2078,2525.2,2525.1,0.39596]
[1725026314928,3.2078,2525.7,2525.1,4.58]
[1725026315229,3.2078,2526.2,2525.5,3.2078]
[1725026315434,3.2078,2526.2,2525.9,4.97583]
[1725026315642,3.2078,2526.2,2525.9,4.58]
[1725026315937,3.2078,2526.2,2525.9,4.97583]
[1725026316134,3.2078,2526.2,2525.9,4.58]
[1725026317036,3.60359,2526.2,2525.9,4.58]
[1725026317236,3.2078,2526.3,2525.9,4.58]
[1725026317431,3.60358,2526.3,2525.9,4.58]
[1725026317734,3.2078,2526.3,2525.9,4.97583]
[1725026318127,3.2078,2526.3,2526.0,0.39582]
[1725026318330,3.2078,2526.3,2525.9,4.97583]
[1725026318524,3.2078,2526.3,2526.0,0.39581]
[1725026318739,3.2078,2526.3,2526.0,0.3958]
[1725026319124,3.2078,2526.3,2525.9,4.97583]
[1725026319525,3.2078,2526.3,2525.6,0.60704636]
[1725026319526,3.2078,2526.8,2526.2,0.39579]
[1725026319839,4.58,2527.8,2526.1,4.58]
[1725026319840,3.2078,2527.4,2526.7,4.58]
[1725026320025,3.2078,2527.4,2526.3,7.7878]
[1725026320026,3.2078,2527.4,2527.3,4.58]
[1725026320223,3.2078,2527.4,2527.1,0.00594636]
[1725026320428,7.1646,2527.4,2527.1,0.00594636]
[1725026320824,0.39563,2527.2,2527.1,0.00594636]
[1725026321030,1.38471,2527.2,2527.1,0.00594636]
[1725026321237,4.35243,2527.2,2527.1,0.00594636]
[1725026321446,0.98919,2527.0,2526.4,4.58]
[1725026321640,0.98932,2526.6,2526.1,4.58]
[1725026321938,4.5126,2527.1,2525.5,3.2078]
[1725026321939,0.39587,2525.7,2525.5,4.58]
[1725026322243,0.98948,2526.2,2525.6,0.39588]
[1725026322244,3.2078,2526.2,2525.6,0.39588]
[1725026322533,3.21370581,2526.2,2525.8,4.58]
[1725026322739,3.21370581,2526.2,2525.9,0.39583]
[1725026322930,3.21370581,2526.2,2525.8,4.58]
[1725026322931,0.39581,2526.1,2525.8,4.58]
[1725026323137,3.2078,2525.9,2525.6,0.00594636]
[1725026323539,3.2078,2525.9,2525.8,0.39585]
[1725026323746,3.2078,2525.9,2525.8,4.97585]
[1725026324048,3.2078,2525.9,2525.8,8.93505]
[1725026324336,0.00590581,2526.2,2526.1,0.3958]
[1725026324638,0.00590581,2526.2,2525.8,14.5392]
[1725026324639,0.00590581,2526.2,2525.9,0.6045]
[1725026325036,0.39585,2525.9,2525.6,0.00594636]
[1725026325228,3.60949581,2526.2,2525.7,0.39587]
[1725026325432,3.21370581,2526.2,2525.6,0.00594636]
[1725026325840,3.60949581,2526.2,2525.6,0.00594636]
[1725026326037,0.3958,2526.1,2525.7,0.39585]
[1725026326234,3.60950581,2526.2,2525.7,0.39585]
[1725026326432,3.2078,2525.9,2525.7,0.39585]
[1725026326633,3.21370581,2526.2,2525.8,4.58]
[1725026326842,3.21370581,2526.2,2525.9,0.39582]
[1725026327037,3.21370581,2526.2,2526.1,0.3958]
[1725026327232,3.21370581,2526.2,2525.6,0.00594636]
[1725026327435,3.13370581,2526.2,2526.0,0.39581]
[1725026327627,3.13370581,2526.2,2525.6,0.00594636]
[1725026328339,0.39583,2526.0,2525.6,0.40182636]
[1725026328539,3.13370581,2526.2,2525.7,0.39586]
[1725026328745,3.13370581,2526.2,2525.6,0.40181636]
[1725026328934,1.56104,2526.6,2525.6,0.00594636]
[1725026328935,0.39587,2525.7,2525.6,0.00594636]
[1725026329134,0.39586,2525.8,2525.6,0.00594636]
[1725026329335,3.9592,2525.8,2525.6,0.00594636]
[1725026329533,7.56287,2525.7,2525.6,0.00594636]
[1725026329751,4.59334,2525.7,2525.6,0.00594636]
[1725026329935,4.59334,2525.7,2525.0,0.95707]
[1725026329936,0.39594,2525.2,2525.0,0.95707]
[1725026330246,0.98971,2525.6,2524.6,5.56003]
[1725026330247,3.2078,2525.4,2524.6,5.56003]
[1725026330441,4.19759,2525.4,2524.6,5.56003]
[1725026330647,3.60379,2525.0,2524.7,0.39602]
[1725026330946,3.7721,2525.5,2524.7,0.39602]
[1725026331242,3.7721,2525.5,2524.6,0.58994636]
[1725026331243,0.396,2524.9,2524.6,0.98597636]
[1725026331446,0.98983,2525.3,2524.6,0.00594636]
[1725026331638,1.38608,2524.7,2524.6,0.00594636]
[1725026331833,46.14688,2524.7,2524.6,0.00594636]
[1725026332037,44.7608,2524.7,2524.2,3.6039]
[1725026332245,0.39604,2524.6,2524.2,0.3961]
[1725026332541,3.2078,2524.6,2523.8,0.3968]
[1725026332850,0.3961,2524.2,2523.7,1.58057]
[1725026333048,3.2078,2524.3,2523.8,0.39616]
[1725026333345,3.2078,2524.3,2523.7,0.00594636]
[1725026333346,0.39612,2524.1,2523.7,0.00594636]
[1725026333539,3.2078,2524.0,2523.7,0.00594636]
[1725026333743,0.39616,2523.9,2523.7,0.00594636]
[1725026333940,4.35856,2523.9,2523.7,0.00594636]
[1725026334140,4.35856,2523.8,2523.7,0.00594636]
[1725026334643,3.2078,2523.8,2523.7,0.40212636]
[1725026334954,0.00594636,2524.1,2523.7,0.00594636]
[1725026335251,3.21374636,2524.1,2523.7,0.00594636]
[1725026335446,3.2078,2523.8,2523.7,0.00594636]
[1725026335840,13.56636,2523.8,2523.7,0.00594636]
[1725026336150,0.39619,2523.7,2522.9,4.75]
[1725026336346,0.99034,2524.0,2522.9,4.75]
[1725026336347,4.3872,2523.9,2522.9,4.75]
[1725026336647,3.60403,2523.4,2522.9,4.75]
[1725026336846,3.2078,2523.2,2522.9,5.1463]
[1725026337046,3.2078,2523.2,2522.8,0.40225636]
[1725026337242,3.2078,2523.1,2522.8,0.00594636]
[1725026337437,3.2078,2523.4,2522.9,4.75]
[1725026337945,3.2078,2523.4,2523.2,0.39626]
[1725026338131,3.2078,2523.4,2522.8,0.00594636]
[1725026338336,3.2078,2523.4,2523.0,0.39628]
[1725026338642,3.2078,2523.1,2522.9,0.3963]
[1725026338846,3.2078,2523.1,2523.0,0.39629]
[1725026339241,3.2078,2523.6,2522.9,5.74077]
[1725026339443,3.2078,2523.6,2523.0,0.99073]
[1725026339744,3.2078,2524.0,2523.6,0.39618]
[1725026340045,3.2078,2523.7,2523.3,4.75]
[1725026340235,3.2078,2524.0,2523.5,0.3962]
[1725026340438,3.2078,2524.0,2523.3,4.75]
[1725026341045,0.00594636,2524.1,2524.0,0.39613]
[1725026342339,0.00594636,2524.1,2523.7,5.14617]
[1725026342644,0.00594636,2524.1,2524.0,0.39613]
[1725026343149,0.00594636,2524.1,2524.0,4.35773]
[1725026343445,6.36e-06,2524.1,2524.0,16.09807]
[1725026344041,6.36e-06,2524.1,2524.0,17.08841]
[1725026344245,6.36e-06,2524.1,2524.0,17.48521]
[1725026345346,6.36e-06,2524.1,2524.0,10.49487]
[1725026345540,6.36e-06,2524.1,2524.0,9.50453]
[1725026346442,6.36e-06,2524.1,2523.8,0.3968]
[1725026346736,6.36e-06,2524.1,2524.0,0.39613]
[1725026346946,6.36e-06,2524.1,2524.0,1.38647]
[1725026347140,6.36e-06,2524.1,2524.0,11.34807]
[1725026347341,6.36e-06,2524.1,2524.0,4.35773]
[1725026347647,6.36e-06,2524.1,2524.0,0.39613]
[1725026347846,6.36e-06,2524.1,2523.8,0.3968]
[1725026348038,3.20780636,2524.1,2523.5,3.2078]
[1725026348243,3.20780636,2524.1,2523.6,0.39619]
[1725026348244,3.60392636,2524.1,2523.6,0.39619]
[1725026348540,3.60392636,2524.1,2523.1,0.39626]
[1725026348541,0.3962,2523.6,2523.1,0.39626]
[1725026348742,3.2078,2523.5,2522.8,0.40274636]
[1725026348954,3.2078,2523.9,2522.9,7.9578]
[1725026349643,0.3962,2523.6,2522.9,3.2078]
[1725026349832,3.604,2523.6,2522.9,3.2078]
[1725026350037,3.2078,2523.6,2522.9,3.6041]
[1725026350236,3.2078,2523.6,2522.9,3.2078]
[1725026350437,0.5832,2523.7,2522.9,3.2078]
[1725026350840,3.604,2523.6,2522.9,3.6041]
[1725026351142,3.2078,2523.5,2522.8,0.00594636]
[1725026351339,41.3832,2523.7,2522.8,4.75594636]
[1725026351536,41.77938,2523.7,2523.1,0.39627]
[1725026351741,41.77938,2523.7,2522.8,4.75594636]
[1725026351742,41.77938,2523.7,2523.0,0.39628]
[1725026351948,0.3962,2523.6,2522.9,0.3963]
[1725026352149,0.39622,2523.5,2522.8,4.75594636]
[1725026352356,41.3832,2523.7,2522.8,4.75594636]
[1725026352650,0.39622,2523.5,2522.8,5.15225636]
[1725026352945,41.3832,2523.7,2522.8,4.75594636]
[1725026353352,0.5832,2523.7,2522.8,4.75594636]
[1725026353540,0.5832,2523.7,2522.8,7.96374636]
[1725026353943,0.5832,2523.7,2523.2,0.39625]
[1725026354139,0.5832,2523.7,2523.3,0.39623]
[1725026354348,0.5832,2523.7,2522.8,7.96374636]
[1725026354349,0.5832,2523.7,2523.2,0.39625]
[1725026354542,0.5832,2523.7,2523.1,0.39627]
[1725026354742,3.2078,2523.8,2523.4,0.39622]
[1725026354948,3.2078,2523.8,2523.3,0.39623]
[1725026355150,0.39616,2523.9,2523.3,0.39623]
[1725026355350,0.39616,2523.9,2523.0,0.3968]
[1725026355654,3.20780636,2524.1,2523.7,0.39617]
[1725026355862,3.20780636,2524.1,2523.5,0.3962]
[1725026355863,0.39614,2524.0,2523.5,0.3962]
[1725026356152,3.20780636,2524.1,2523.2,4.75]
[1725026356354,3.60392636,2524.1,2523.6,0.39619]
[1725026356749,3.60392636,2524.1,2523.7,0.39618]
[1725026356952,3.20780636,2524.1,2523.7,0.39617]
[1725026357155,0.39614,2524.0,2523.2,7.9578]
[1725026357355,3.20780636,2524.1,2523.2,7.9578]
[1725026357552,4.19812636,2524.1,2523.2,7.9578]
[1725026357861,0.39617,2523.8,2523.2,7.9578]
[1725026358058,0.39617,2523.8,2523.4,0.39623]
[1725026358261,0.3962,2523.6,2523.2,8.35405]
[1725026358459,0.39619,2523.7,2523.3,0.39624]
[1725026358649,0.39618,2523.7,2523.3,0.39623]
[1725026358849,0.39618,2523.7,2523.4,0.39622]
[1725026359058,0.3962,2523.6,2523.2,3.60405]
[1725026359254,0.39617,2523.8,2523.5,0.39621]
[1725026359561,0.39621,2523.5,2523.2,3.60405]
[1725026359855,0.39621,2523.5,2522.7,5.65452]
[1725026359856,0.39619,2523.7,2523.3,0.39623]
[1725026360046,6.36e-06,2524.1,2524.0,0.39613]
[1725026360250,6.36e-06,2524.1,2523.5,4.75]
[1725026360251,0.39614,2524.0,2523.7,0.39617]
[1725026360446,4.19812636,2524.1,2523.5,0.3962]
[1725026360655,0.39613,2524.0,2523.6,0.39618]
[1725026360857,3.20780636,2524.1,2523.5,0.3962]
[1725026361056,3.20780636,2524.1,2523.2,4.75]
[1725026361264,0.39616,2523.9,2523.6,0.39619]
[1725026361464,0.39616,2523.9,2523.5,0.3962]
[1725026361663,3.20780636,2524.1,2523.5,0.3962]
[1725026361860,0.3962,2523.6,2523.0,0.5649]
[1725026362077,0.3962,2523.6,2523.3,0.39623]
[1725026362358,0.39622,2523.5,2523.3,0.39624]
[1725026362555,44.6182,2523.8,2523.4,0.39623]
[1725026362749,0.3962,2523.6,2523.3,0.39623]
[1725026362951,45.60863,2523.8,2523.3,0.39623]
[1725026363358,0.39622,2523.5,2523.3,0.39623]
[1725026363559,0.39621,2523.6,2523.3,0.39623]
[1725026363758,0.39621,2523.5,2523.3,0.39623]
[1725026363954,0.99048,2523.7,2523.2,0.39625]
[1725026364155,0.39627,2523.2,2522.9,3.2078]
[1725026364460,0.39625,2523.3,2522.8,0.00594636]
[1725026364664,0.39625,2523.3,2523.0,0.39628]
[1725026365166,4.35945,2523.3,2523.0,0.39628]
[1725026365358,0.39626,2523.2,2523.0,0.39628]
[1725026365860,3.9632,2523.2,2523.1,0.39627]
[1725026366070,0.39625,2523.3,2523.1,0.39627]
[1725026366368,3.9632,2523.2,2523.1,0.39627]
[1725026366758,3.9632,2523.2,2522.8,0.00594636]
[1725026366759,4.35946,2523.2,2523.0,0.39628]
[1725026366963,7.171,2523.2,2522.8,0.00594636]
[1725026367265,3.9632,2523.1,2522.8,0.00594636]
[1725026367566,0.39626,2523.2,2522.8,0.00594636]
[1725026367758,3.60405,2523.3,2523.1,0.39627]
[1725026367963,2.53560105,2523.6,2523.2,0.39626]
[1725026367964,0.39624,2523.4,2523.2,0.39626]
[1725026368466,0.39624,2523.4,2522.8,0.99674636]
[1725026368467,5.31438105,2523.7,2522.9,7.7778]
[1725026368762,4.16549,2523.7,2523.5,0.3962]
[1725026368965,7.7317,2523.7,2523.2,0.99065]
[1725026369165,3.7693,2523.7,2523.5,0.3962]
[1725026369357,3.2078,2524.0,2523.6,4.57]
[1725026369556,3.2078,2524.0,2523.9,0.39615]
[1725026369762,6.36e-06,2524.1,2524.0,0.39613]
[1725026370468,6.36e-06,2524.1,2524.0,10.35773]
[1725026370656,3.2078,2525.0,2524.7,0.39602]
[1725026370862,3.2078,2525.0,2524.5,4.57]
[1725026371154,3.2078,2525.0,2524.2,4.57]
[1725026371363,1.54508105,2524.9,2524.2,4.57]
[1725026371665,0.00594636,2524.8,2524.4,0.39606]
[1725026371866,0.00594636,2524.8,2524.3,0.00594636]
[1725026372372,0.00594636,2524.8,2524.3,0.40202636]
[1725026372560,0.00594636,2524.8,2524.3,0.00594636]
[1725026372867,3.2078,2524.7,2524.3,0.00594636]
[1725026373074,0.39605,2524.6,2524.3,0.00594636]
[1725026373465,1.94113105,2524.6,2524.3,0.00594636]
[1725026373692,1.54508105,2524.6,2524.3,0.00594636]
[1725026374161,1.55102741,2524.8,2524.4,0.39606]
[1725026374464,1.54508105,2524.7,2524.5,0.39605]
[1725026374858,1.54508105,2524.7,2524.4,0.39606]
[1725026375061,1.54508105,2524.6,2524.4,0.39606]
[1725026375268,0.00594636,2524.8,2524.3,0.00594636]
[1725026375468,1.55306218,2524.8,2524.7,0.39602]
[1725026375666,1.55306218,2524.8,2524.6,0.39603]
[1725026376274,0.00594636,2524.8,2524.7,0.39602]
[1725026376466,1.55349315,2524.8,2524.7,0.39602]
[1725026376771,0.00594636,2524.8,2524.7,0.39602]
[1725026377377,0.00594636,2524.8,2524.7,4.35682]
[1725026377562,0.00594636,2524.8,2524.7,3.9608]
[1725026377871,0.39604,2524.6,2524.3,0.00594636]
[1725026378058,1.54754679,2524.6,2524.3,0.00594636]
[1725026378262,0.19805676,2524.7,2524.3,0.00594636]
[1725026378263,1.54754679,2524.7,2524.4,0.39606]
[1725026378471,1.54754679,2524.6,2524.3,0.00594636]
[1725026378679,44.40171384,2524.7,2524.3,0.00594636]
[1725026378880,1.54754679,2524.6,2524.3,0.00594636]
[1725026379178,1.94361679,2524.4,2524.3,0.00594636]
[1725026379362,42.94066164,2524.4,2524.3,0.00594636]
[1725026379668,1.54654496,2524.4,2524.3,0.00594636]
[1725026379872,4.35767,2524.4,2524.3,0.00594636]
[1725026380058,6.60992166,2524.4,2524.3,0.00594636]
[1725026380266,12.21385166,2524.4,2523.4,0.9737]
[1725026380460,1.54635467,2524.0,2523.5,0.3968]
[1725026380659,3.80629317,2523.9,2523.2,0.6162]
[1725026380869,1.54635467,2523.8,2523.7,0.39618]
[1725026381061,2.06180623,2524.0,2523.6,4.96619]
[1725026381062,1.94249467,2524.0,2523.6,4.96619]
[1725026381261,1.94249467,2524.0,2523.2,1.013]
[1725026381262,1.94249467,2524.0,2523.3,4.57]
[1725026381467,0.39618,2523.8,2523.5,0.00594636]
[1725026381664,1.94253467,2523.8,2523.5,0.00594636]
[1725026381866,1.54635467,2523.8,2523.5,0.00594636]
[1725026382071,1.94252467,2523.8,2523.5,0.00594636]
[1725026382271,1.54635467,2523.8,2523.5,0.00594636]
[1725026382474,1.54635467,2524.0,2523.6,4.77298074]
[1725026382662,4.18586,2524.5,2523.9,0.39615]
[1725026382663,1.54635467,2524.1,2523.9,0.39615]
[1725026382871,1.94248467,2524.1,2523.6,0.39619]
[1725026383171,1.74446876,2524.0,2523.7,0.39618]
[1725026383374,1.74446876,2524.0,2523.7,0.39617]
[1725026383563,1.54635467,2524.0,2523.7,0.39617]
[1725026383875,1.54635467,2524.0,2523.8,0.39616]
[1725026384276,5.50875467,2524.0,2523.6,0.39619]
[1725026384470,1.74447886,2523.9,2523.5,0.00594636]
[1725026384676,1.94254467,2523.7,2523.5,0.00594636]
[1725026384971,1.94254467,2523.6,2523.5,0.00594636]
[1725026385185,2.14069191,2523.6,2523.5,0.00594636]
[1725026385374,0.59433724,2523.6,2523.5,0.00594636]
[1725026385879,0.39619,2523.6,2523.5,0.00594636]
[1725026386072,4.55674332,2523.6,2523.5,0.00594636]
[1725026386670,11.15104332,2523.6,2522.9,0.3963]
[1725026386978,1.54589839,2523.2,2522.8,4.57]
[1725026387178,1.54589839,2523.2,2523.1,0.39627]
[1725026387370,0.39622,2523.5,2523.0,0.39628]
[1725026387371,1.54589839,2523.3,2523.0,0.39628]
[1725026387566,1.54589839,2523.3,2522.8,4.57]
[1725026387770,1.94213839,2523.3,2522.9,0.40223636]
[1725026387974,1.54589839,2523.3,2523.0,0.39629]
[1725026388268,2.14030925,2523.3,2522.9,0.40224636]
[1725026388576,1.54589839,2523.3,2523.0,0.39629]
[1725026388966,1.54589839,2523.3,2523.2,0.39626]
[1725026389166,1.55184475,2523.4,2523.2,0.39626]
[1725026389577,1.55184475,2523.4,2522.9,0.00594636]
[1725026389874,1.55184475,2523.4,2523.1,0.39626]
[1725026390070,1.55184475,2523.4,2522.9,0.00594636]
[1725026390269,0.00594636,2523.4,2523.3,0.39624]
[1725026391081,0.00594636,2523.4,2523.3,4.35944]
[1725026391675,1.54589839,2524.0,2523.5,0.99052]
[1725026391877,1.54589839,2524.0,2523.9,0.39615]
[1725026392081,1.54589839,2524.1,2524.0,0.39613]
[1725026392383,1.54589839,2524.2,2524.1,0.39612]
[1725026392575,1.54589839,2524.3,2523.9,4.57]
[1725026392880,2.06714422,2524.4,2524.2,0.39609]
[1725026393182,1.54678076,2524.3,2524.2,0.39609]
[1725026393375,1.552797,2524.4,2524.2,0.39609]
[1725026393575,1.552797,2524.4,2523.9,3.2078]
[1725026393576,1.552797,2524.4,2524.3,0.39609]
[1725026394080,1.552797,2524.4,2523.9,4.19815]
[1725026394081,0.20402193,2524.4,2523.9,3.2078]
[1725026394270,1.54672569,2524.3,2523.9,3.2078]
[1725026394471,1.55267205,2524.4,2523.9,3.6046]
[1725026394667,1.54672569,2524.2,2524.1,0.39611]
[1725026394977,1.54672569,2524.3,2524.2,0.3961]
[1725026395479,1.55267205,2524.4,2524.3,0.39609]
[1725026395775,0.00594636,2524.4,2524.3,0.39609]